[Event "African Individual Chess-ch Open 2024"]
[Site "Accra"]
[Date "2024.03.17"]
[Round "6.5"]
[White "Zhemba, Jemusse"]
[Black "Agnelo, Amorim"]
[Result "1-0"]
[ECO "B41"]
[WhiteElo "2226"]
[BlackElo "2219"]
[Annotator "RC"]
[PlyCount "113"]
[EventDate "2024.03.13"]
[EventCountry "GHA"]
[SourceTitle "playchess.com"]
[Source "ChessBase"]
[SourceQuality "1"]
[TimeControl "5400+30"]

1. e4 {[%emt 0:00:07]} c5 {[%emt 0:01:39]} 2. Nf3 {[%emt 0:00:16]} e6 {[%emt 0:00:29]} 3. d4 {[%emt 0:00:17]} cxd4 {[%emt 0:00:03]} 4. Nxd4 {[%emt 0:00:10]} a6 {[%emt 0:00:05]} 5. Bd3 {[%emt 0:00:35]} Nc6 {[%emt 0:01:21]} 6. Nf3 {[%emt 0:00:59]} Nf6 {[%emt 0:00:44]} 7. O-O {[%emt 0:00:30]} d6 {[%emt 0:00:12]} 8. c4 {[%emt 0:00:24]} Be7 {[%emt 0:00:14]} 9. Nc3 {[%emt 0:00:31]} O-O {[%emt 0:00:15]} 10. h3 {[%emt 0:00:11]} Qc7 {[%emt 0:07:15]} 11. Bf4 {[%emt 0:02:07]} Ne5 {[%emt 0:01:36]} 12. Rc1 {[%emt 0:00:12]} b6 {[%emt 0:01:34]} 13. Bb1 {[%emt 0:01:02]} Bb7 {[%emt 0:00:54]} 14. Qe2 {[%emt 0:06:50]} Rac8 {[%emt 0:03:14]} 15. b3 {[%emt 0:01:16]} Nfd7 {[%emt 0:04:12]} 16. Rfd1 {[%emt 0:01:54]} Rfd8 {[%emt 0:01:27]} 17. Nd4 {[%emt 0:02:50]} Ng6 {[%emt 0:10:49]} 18. Be3 {[%emt 0:00:39]} Bf6 {[%emt 0:02:01]} 19. Qd2 {[%emt 0:02:36]} Qb8 {[%emt 0:03:37]} 20. Nde2 {[%emt 0:03:19]} Be7 {[%emt 0:03:29]} 21. f4 {[%emt 0:01:04]} Ba8 {[%emt 0:06:48]} 22. Nd4 {[%emt 0:00:19]} Nf6 {[%emt 0:01:21]} 23. f5 {[%emt 0:00:36]} Nf8 {[%emt 0:00:57]} 24. a4 {[%emt 0:01:55]} d5 {[%emt 0:02:13]} 25. cxd5 {[%emt 0:00:27]} exd5 {[%emt 0:00:49]} 26. e5 {[%emt 0:00:06]} Qxe5 {[%emt 0:01:19]} 27. Bf4 {[%emt 0:00:28]} Qxd4+ {[%emt 0:00:18]} 28. Qxd4 {[%emt 0:00:11]} Bc5 {[%emt 0:00:06]} 29. Ne2 {[%emt 0:00:08]} Bxd4+ {[%emt 0:00:12]} 30. Nxd4 {[%emt 0:00:02]} N8d7 {[%emt 0:01:04]} 31. Bc7 {[%emt 0:01:05]} Re8 {[%emt 0:00:13]} 32. b4 {[%emt 0:00:34]} Bb7 {[%emt 0:02:07]} 33. Rc2 {[%emt 0:07:27]} Ne4 {[%emt 0:04:57]} 34. Rdc1 {[%emt 0:03:33]} g6 {[%emt 0:05:49]} 35. Ba2 {[%emt 0:03:48]} Nef6 {[%emt 0:03:53]} 36. Bg3 {[%emt 0:11:03]} Ne4 {[%emt 0:07:50]} 37. Bf4 {[%emt 0:02:37]} Nef6 {[%emt 0:00:51]} 38. Rxc8 {[%emt 0:01:05]} Rxc8 {[%emt 0:00:05]} 39. Rxc8+ {[%emt 0:00:05]} Bxc8 {[%emt 0:00:14]} 40. g4 {[%emt 0:01:23]} Bb7 {[%emt 0:00:12]} 41. g5 {[%emt 0:00:15]} Ne4 {[%emt 0:00:24]} 42. f6 {[%emt 0:00:18]} Kf8 {[%emt 0:00:59]} 43. Kg2 {[%emt 0:01:42]} Ke8 {[%emt 0:00:32]} 44. Bb3 {[%emt 0:00:29]} Kd8 {[%emt 0:00:53]} 45. h4 {[%emt 0:00:25]} a5 {[%emt 0:01:27]} 46. bxa5 {[%emt 0:01:55]} bxa5 {[%emt 0:00:59]} 47. Nb5 {[%emt 0:00:36]} Ndc5 {[%emt 0:01:43]} 48. Bd1 {[%emt 0:02:36]} Ne6 {[%emt 0:00:31]} 49. Be5 {[%emt 0:01:23]} Kd7 {[%emt 0:00:40]} 50. Bg4 {[%emt 0:02:37]} N4c5 {[%emt 0:03:23]} 51. Nd6 {[%emt 0:00:43]} Bc6 {[%emt 0:05:45]} 52. Nxf7 {[%emt 0:00:30]} Bxa4 {[%emt 0:02:50]} 53. Bc3 {[%emt 0:01:41]} Nb7 {[%emt 0:02:58]} 54. Ne5+ {[%emt 0:00:15]} Kd6 {[%emt 0:00:13]} 55. Bxe6 {[%emt 0:00:05]} Kxe6 {[%emt 0:00:41]} 56. f7 {[%emt 0:00:07]} Ke7 {[%emt 0:05:26]} 57. Bb2 {[%emt 0:00:02]} 1-0

[Event "African Individual Chess-ch Open 2024"]
[Site "Accra"]
[Date "2024.03.17"]
[Round "6.6"]
[White "Kayonde, Andrew"]
[Black "Mhango, Banele"]
[Result "1-0"]
[ECO "B07"]
[WhiteElo "2321"]
[BlackElo "2193"]
[Annotator "TA"]
[PlyCount "110"]
[EventDate "2024.03.13"]
[EventCountry "GHA"]
[SourceTitle "playchess.com"]
[Source "ChessBase"]
[SourceQuality "1"]
[TimeControl "5400+30"]

{[%evp 26,110,33,27,54,40,51,25,53,66,115,100,112,98,86,67,125,84,115,112,117,65,77,60,102,95,124,54,83,78,110,105,135,135,131,96,94,52,64,0,0,0,71,0,31,29,46,0,0,-49,-42,-45,0,0,0,0,0,0,0,-39,-19,-610,-613,-734,-669,-721,-692,-1285,-781,-1341,-816,-1081,0,-1313,-1311,-1363,-630,-566,-144,-153,0,0,0,-29991,-14,-29991,0]} 1. d4 {[%emt 0:00:25]} Nf6 {[%emt 0:00:43]} 2. Nf3 {[%emt 0:01:52]} g6 {[%emt 0:00:36]} 3. Nbd2 {[%emt 0:00:12]} Bg7 {[%emt 0:02:53]} 4. e4 {[%emt 0:00:12]} d6 {[%emt 0:03:48]} 5. Bb5+ {[%emt 0:00:14]} Nfd7 {[%emt 0:01:54]} 6. O-O {[%emt 0:02:48]} O-O {[%emt 0:00:05]} 7. Re1 {[%emt 0:00:28]} e5 {[%emt 0:05:37]} 8. c3 {[%emt 0:00:31]} Qe7 {[%emt 0:01:11]} 9. Nf1 {[%emt 0:11:45]} Nf6 {[%emt 0:07:23]} 10. Ng3 {[%emt 0:02:56]} a6 {[%emt 0:01:17]} 11. Ba4 {[%emt 0:00:43]} b5 {[%emt 0:01:14]} 12. Bc2 {[%emt 0:00:09]} Bb7 {[%emt 0:01:25]} 13. Bg5 {[%emt 0:06:21]} h6 {[%emt 0:00:44]} 14. Bd2 {[%emt 0:00:10]} c5 {[%emt 0:03:35]} 15. Qc1 {[%emt 0:02:15]} Kh7 {[%emt 0:01:12]} 16. a4 {[%emt 0:01:23]} bxa4 {[%emt 0:11:50]} 17. d5 {[%emt 0:04:07]} Bc8 {[%emt 0:03:07]} (17... Nbd7 $14 {is more appropriate.}) 18. Rxa4 {[%emt 0:03:13]} Nbd7 {[%emt 0:00:09]} 19. b3 {[%emt 0:13:47]} Nb6 {[%emt 0:02:18]} 20. Ra2 {[%emt 0:06:23]} Ng8 {[%emt 0:03:57]} (20... Bg4 $14) 21. Qb1 {[%emt 0:00:59]} Kh8 {[%emt 0:02:59]} 22. Bd3 {[%emt 0:01:50]} Qc7 {[%emt 0:15:24]} 23. h4 {[%emt 0:14:27]} (23. Be3 $16) 23... c4 $14 {[%emt 0:04:20]} 24. bxc4 {[%emt 0:00:09]} Nd7 {[%emt 0:00:16]} 25. h5 {[%emt 0:02:13]} Nc5 {[%emt 0:01:01]} 26. Bf1 {[%emt 0:02:19]} (26. Be3 $16) 26... Nf6 {[%emt 0:02:38]} 27. Be3 {[%emt 0:01:56]} Rb8 {[%emt 0:01:36]} 28. Qc2 {[%emt 0:03:09]} Ng4 {[%emt 0:02:57]} 29. Bxc5 {[%emt 0:02:14]} Qxc5 {[%emt 0:01:17]} 30. Rea1 {[%emt 0:00:07]} Bf6 {[%emt 0:02:51]} 31. Ra5 {[%emt 0:00:31]} Qa7 $1 {[%emt 0:00:08] [#]} 32. Rb5 {[%emt 0:06:14]} ({White should try} 32. c5 $1 $14 Bd8 33. R5a4) 32... Bd7 {[%emt 0:04:56]} 33. Rba5 {[%emt 0:01:12]} (33. Rxb8 $11 Rxb8 34. c5 Qxc5 35. Rxa6 (35. Bxa6 Ra8 $11)) 33... Bc8 $1 $16 {[%emt 0:00:30] [#]} 34. Rb5 {[%emt 0:07:38]} (34. c5 $1 $16 {[%cal Rf1a6]} Bd8 35. R5a4) 34... Rxb5 {[%emt 0:08:12]} 35. cxb5 {[%emt 0:00:05]} Bd8 {[%emt 0:00:04]} 36. Nh1 {[%emt 0:00:09]} (36. hxg6 fxg6 37. Nh1 (37. bxa6 Nxf2 38. Kh2 Bg5 $19) 37... a5 $11) (36. bxa6 $14 {was preferrable.} Bb6 37. Nh1) 36... a5 $11 {[%emt 0:00:13]} 37. Nh2 {[%emt 0:01:29]} (37. Nd2 $1 $11 {should be considered.}) 37... Nf6 $15 {[%emt 0:00:22]} 38. Be2 {[%emt 0:00:52]} Bb6 {[%emt 0:00:27]} 39. Nf1 {[%emt 0:00:38]} gxh5 {[%emt 0:02:16]} 40. Nd2 {[%emt 0:00:15]} Rg8 {[%emt 0:01:29]} 41. Nc4 {[%emt 0:00:14]} Bh3 {[%emt 0:01:08]} 42. Bf3 {[%emt 0:00:59]} (42. Nxd6 Rxg2+ (42... Bxg2 $2 43. Qc1 $19) 43. Kf1 Bxf2 (43... Rg8+ $2 44. Ke1 $19) 44. Nxf7+ Kh7 (44... Kg7 $2 45. Bd3 Rg1+ 46. Ke2 Qe3#) 45. Bd3 Rg1+ 46. Ke2 Qe3#) 42... h4 {[%emt 0:00:00]} 43. Qd3 $2 {[%emt 0:00:00][%mdl 8192]} (43. Nxd6 $2 Bxg2 44. Bxg2 h3 $19) (43. Nxb6 $11 Qxb6 44. Kh2) 43... Nh5 $19 {[%emt 0:00:00]} 44. Nxb6 {[%emt 0:00:00]} Nf4 {[%emt 0:00:00]} 45. Qe3 {[%emt 0:00:00]} Bxg2 {[%emt 0:00:00]} 46. Bxg2 {[%emt 0:00:00]} Rxg2+ {[%emt 0:00:00]} 47. Kf1 {[%emt 0:00:00]} Rh2 {[%emt 0:00:00]} 48. Kg1 {[%emt 0:00:00]} Rg2+ {[%emt 0:00:00]} 49. Kf1 {[%emt 0:00:00]} h3 {[%emt 0:00:00]} 50. Rc1 {[%emt 0:00:00]} h2 {[%emt 0:00:00]} (50... Rg7 $142 51. Rb1 h2) 51. Ke1 $19 {[%emt 0:00:00]} Rg6 $2 {[%emt 0:00:00]} (51... Kh7 $19 {and Black stays clearly on top.} 52. Kd2 Rg1) 52. Kd2 $17 {[%emt 0:00:00]} Ng2 $2 {[%emt 0:00:00]} ({Black should play} 52... Rg1 $17 {...Kh7 would now be deadly.} 53. Kc2 Kh7) 53. Qf3 $1 $11 {[%emt 0:00:00]} (53. Nc8 Nxe3 54. Nxa7 Nc4+ 55. Ke2 Rg1 $17) 53... Qxb6 {[%emt 0:00:00]} 54. Qf4 $2 {[%emt 0:07:57][%mdl 8192]} (54. Qxf7 $11 Rg7 55. Qe8+ Kh7 56. Qc6) 54... f6 $2 (54... Nxf4 55. Rb1 Rg1 56. Kc2 Qc5 57. b6 Qc4 (57... Rxb1 {gets mated.} 58. Kxb1 Qxb6+ 59. Kc1 a4 60. f3 a3 61. Ng3 Qb2+ 62. Kd1 a2 63. Ne2 h1=Q+ 64. Ng1 a1=Q#) 58. Ng3 Qd3+ 59. Kb3 Rxb1+ (59... Qxb1+ 60. Ka4 Qxb6 61. Nf1 Rxf1 62. c4 Qb4#) 60. Ka4 Qc4+ 61. Kxa5 Qb5#) 55. Qxf6+ $2 {[%emt 0:00:00][%mdl 8192]} (55. Qf5 $11 Nf4 56. Qc8+ Kh7 57. Qc6) 55... Rg7 $2 {[%emt 0:05:17]} (55... Rxf6 {mates} 56. Kc2 Rf3 (56... Qxb5 {leads to mate.} 57. Rb1 Qa4+ 58. Kc1 Rf3 59. Rb8+ Kg7 60. Kb2 Rd3 61. Rb3 Ne1 62. Rb7+ Kg6 63. Rg7+ Kxg7 64. Ng3 Rd2+ 65. Kc1 Qd1#) 57. Rb1 Qc5 58. Rb3 a4 59. Rb2 Rxc3+ (59... Qxc3+ 60. Kb1 Rd3 61. Ng3 a3 62. Rd2 Rxd2 63. Nh5 h1=Q#) 60. Kb1 Rc1+ 61. Ka2 Qc4+ (61... Rxh1 {is a self mate.} 62. Rb1 Rxb1 63. f4 Qc2+ 64. Ka3 Qb3#) 62. Ka3 Rc3+ 63. Rb3 Qxb3#) 1-0

[Event "African Individual Chess-ch Open 2024"]
[Site "Accra"]
[Date "2024.03.17"]
[Round "6.7"]
[White "ONOKPITE, Kennedy"]
[Black "KIGIGHA, Bomo Lovet"]
[Result "1-0"]
[ECO "D00"]
[WhiteElo "2101"]
[BlackElo "2231"]
[Annotator "TA"]
[PlyCount "149"]
[EventDate "2024.03.13"]
[EventCountry "GHA"]
[SourceTitle "playchess.com"]
[Source "ChessBase"]
[SourceQuality "1"]
[TimeControl "5400+30"]

{[%evp 67,149,250,310,268,384,269,312,283,383,283,488,467,495,466,446,261,251,252,217,229,318,257,388,400,438,419,431,434,445,427,381,390,420,369,437,359,953,894,729,456,426,295,295,286,503,498,524,0,312,296,278,272,606,516,392,56,118,118,118,118,117,51,51,51,50,50,50,67,604,537,512,0,0,0,0,0,8,8,1387,214,29991,29992,29992,29993]} 1. d4 {[%emt 0:00:45]} d5 {[%emt 0:00:08]} 2. Bf4 {[%emt 0:00:08]} Nf6 {[%emt 0:00:48]} 3. e3 {[%emt 0:00:10]} Bf5 {[%emt 0:01:15]} 4. c4 {[%emt 0:01:09]} e6 {[%emt 0:01:10]} 5. Qb3 {[%emt 0:02:09]} Qc8 {[%emt 0:01:32]} 6. cxd5 {[%emt 0:00:27] D00: Damenbauernspiele.} exd5 {[%emt 0:00:04]} 7. Nc3 {[%emt 0:00:11]} c6 {[%emt 0:02:44]} 8. Rc1 {[%emt 0:00:18]} a6 {[%emt 0:01:24]} 9. Nf3 {[%emt 0:04:02]} Be7 {[%emt 0:04:26]} 10. h3 {[%emt 0:01:30]} O-O {[%emt 0:00:50]} 11. Be2 {[%emt 0:01:34]} Nbd7 {[%emt 0:01:25]} 12. O-O {[%emt 0:00:26]} b6 $146 {[%emt 0:02:20]} ({Predecessor:} 12... Re8 13. Rfd1 h6 14. Ne5 Be6 15. Bf3 Nxe5 16. Bxe5 Ne4 17. Bxe4 dxe4 18. d5 Bxh3 19. gxh3 Qxh3 {1-0 Tang,A (2507)-Nihal,S (2610) Chess24 Banter Blitz Cup 2019 (3.4)}) 13. Ne5 {[%emt 0:02:31]} Qb7 {[%emt 0:02:06]} 14. Nxd7 {[%emt 0:05:05]} Nxd7 {[%emt 0:00:59]} 15. Nxd5 {[%emt 0:02:31]} Bd8 {[%emt 0:07:05]} 16. Nc3 {[%emt 0:00:28]} Be6 {[%emt 0:01:08]} 17. Bc4 {[%emt 0:00:51]} Bxc4 {[%emt 0:02:25]} 18. Qxc4 {[%emt 0:00:03]} Be7 {[%emt 0:02:28]} 19. Ne4 {[%emt 0:01:56]} Rac8 {[%emt 0:00:02]} 20. Bd6 {[%emt 0:02:48]} b5 {[%emt 0:08:34]} 21. Qc2 {[%emt 0:02:55]} Nb8 {[%emt 0:02:06]} 22. Nc5 {[%emt 0:00:53]} Qa7 {[%emt 0:00:06]} 23. Bxe7 {[%emt 0:00:43]} Qxe7 {[%emt 0:00:02]} 24. Qe4 {[%emt 0:00:19]} Qf6 {[%emt 0:01:48]} 25. Qf3 {[%emt 0:02:42]} Qe7 {[%emt 0:00:09]} 26. Rc2 {[%emt 0:00:28]} Rcd8 {[%emt 0:00:01]} 27. Nd3 {[%emt 0:02:25]} Rd6 {[%emt 0:00:42]} 28. Ne5 {[%emt 0:00:29]} Qe6 {[%emt 0:00:08]} 29. b3 {[%emt 0:00:22]} f6 {[%emt 0:00:06]} 30. Nd3 {[%emt 0:00:17]} a5 {[%emt 0:02:01]} 31. Rfc1 {[%emt 0:00:18]} Qd7 {[%emt 0:00:27]} 32. Nc5 {[%emt 0:01:05]} Qf7 {[%emt 0:00:10]} 33. Ne4 {[%emt 0:01:14]} Rd5 {[%emt 0:01:57]} 34. Rc5 {[%emt 0:00:12]} Rd7 {[%emt 0:04:17]} 35. Qf4 {[%emt 0:03:35]} g6 {[%emt 0:07:32]} (35... Rdd8 $142 36. Ng3 Kh8) 36. Qf3 {[%emt 0:04:12]} Kg7 {[%emt 0:00:16]} 37. h4 {[%emt 0:01:13]} Ra7 {[%emt 0:02:50]} 38. Qf4 {[%emt 0:02:20]} a4 $2 {[%emt 0:02:06]} (38... Qc7 39. Qf3 Qd7) 39. d5 $18 {[%emt 0:02:15]} axb3 {[%emt 0:03:42]} 40. axb3 {[%emt 0:00:17]} (40. Nd6 Qc7 $18) 40... Nd7 {[%emt 0:02:50]} 41. Rxc6 {[%emt 0:02:13]} (41. Nd6 $142 Qe7 42. Rxc6) 41... Qxd5 $18 {[%emt 0:00:49]} 42. Rc7 {[%emt 0:00:45]} Rxc7 {[%emt 0:04:07]} 43. Rxc7 {[%emt 0:00:19]} Rf7 {[%emt 0:00:20]} 44. b4 {[%emt 0:01:47]} h5 {[%emt 0:09:28]} (44... Qe5 $142 45. Nd6 Qxf4 46. exf4 Re7) 45. Kh2 $18 {[%emt 0:03:04]} Qe6 {[%emt 0:08:42]} 46. Nd6 {[%emt 0:04:22]} Re7 {[%emt 0:01:23]} 47. Nxb5 {[%emt 0:00:22]} Ne5 {[%emt 0:00:15]} 48. Nd4 {[%emt 0:03:25]} Qd6 {[%emt 0:06:56]} 49. Rxe7+ {[%emt 0:00:54]} Qxe7 {[%emt 0:00:01]} 50. b5 {[%emt 0:00:23]} Qa3 {[%emt 0:05:39]} 51. f3 {[%emt 0:04:23]} Qb2 $2 {[%emt 0:00:18]} (51... Qd6 52. Kh3 (52. Nc6 Nxf3+ 53. gxf3 Qd2+ 54. Kh3 Qd1 $18) 52... Qb8) 52. Qe4 $18 {[%emt 0:01:24]} Qf2 {[%emt 0:00:00]} 53. Nc2 {[%emt 0:00:00]} Qd2 {[%emt 0:00:00]} 54. Qb7+ {[%emt 0:00:00]} Kh6 {[%emt 0:00:00]} 55. Qc8 $1 {[%emt 0:00:00]} Kh7 $2 {[%emt 0:00:00]} (55... Nxf3+ {kämpft weiter.} 56. Kg3 Nxh4 57. Kxh4 g5+ 58. Kh3 g4+ 59. Kg3 Qd6+ 60. Kf2 Qd2+ 61. Kf1 Qd3+ 62. Ke1 Qxb5 63. Qh8+ Kg6 64. Qg8+ Kh6) 56. Qc7+ $18 {[%emt 0:00:00]} Kh6 {[%emt 0:00:00]} 57. b6 $2 {[%emt 0:00:00]} ({Günstiger ist} 57. Kg3 $18) 57... Nxf3+ $2 {[%emt 0:00:00][%mdl 8192]} (57... Qf2 $1 $11 58. Kh3 g5 59. hxg5+ fxg5 60. Qd6+ Kh7 61. Qe7+ (61. Qxe5 $2 Qh4#) 61... Kh6 62. Qf8+ Kg6 63. Qe8+ (63. Qd6+ Kh7 $11) 63... Kh6 64. Qf8+ (64. Qh8+ Kg6 $11) 64... Kg6 65. Qg8+ (65. Qd6+ Kh7 $11) 65... Kh6 66. Qf8+) 58. Kg3 $18 {[%emt 0:00:00]} Nxh4 {[%emt 0:00:00]} 59. Qf4+ $1 {[%emt 0:00:55]} (59. Kxh4 $2 Qxg2) 59... g5 $2 {[%emt 0:00:00]} (59... Kh7 60. Qxh4 Qd6+ 61. Kf2 Qxb6) 60. Qxf6+ $18 {[%emt 0:00:27]} Kh7 {[%emt 0:00:00]} 61. Qe7+ $2 {[%emt 0:01:08]} (61. Qxg5 Qxg2+ 62. Kf4 Ng6+) (61. Qc6 $1 $18 {[%cal Rc6e4]} Nf5+ 62. Kh2 Qd6+ 63. Qxd6 Nxd6 64. e4) 61... Kh6 {[%emt 0:00:00]} (61... Kg6 $14 62. Qe8+ Kg7) 62. Qe6+ $1 $16 {[%emt 0:00:24]} Kg7 {[%emt 0:00:00]} 63. Qe5+ {[%emt 0:02:13]} Kh6 {[%emt 0:00:00] [#]} 64. Qh8+ $1 {[%emt 0:04:17]} Kg6 {[%emt 0:00:00]} 65. Qe8+ {[%emt 0:00:24]} Kg7 $1 {[%emt 0:00:00]} 66. Qc6 $1 {[%emt 0:01:54]} Nf5+ {[%emt 0:03:01]} 67. Kh2 {[%emt 0:00:35]} g4 $2 {[%emt 0:00:11][%mdl 8192] [#]} (67... Nh6 $14) 68. Nd4 $1 $18 {[%emt 0:07:17]} (68. b7 g3+ 69. Kh3 Qd1 70. Qc7+ (70. b8=B $2 Qh1#) (70. Qc3+ Kg6 71. Qc6+ Kg5) 70... Kf6 $11) 68... Nxe3 {[%emt 0:00:39]} 69. Qd7+ $2 {[%emt 0:04:37]} (69. Ne6+ $18 Kf7 70. Ng5+ Kg7 71. b7) 69... Kg6 $11 {[%emt 0:02:07]} 70. Qe6+ {[%emt 0:00:48]} Kg5 {[%emt 0:00:36]} 71. Qe5+ {[%emt 0:00:20]} Kg6 $1 {[%emt 0:00:46]} 72. Qe4+ {[%emt 0:00:08]} Kf7 $2 {[%emt 0:02:36][%mdl 8192]} (72... Kf6 $11) 73. b7 $2 {[%emt 0:01:28]} (73. Nf5 {Beabsichtigt Qe7+ und Matt.} g3+ 74. Kxg3 h4+ 75. Kh3 (75. Kxh4 Nxg2+ 76. Kg3 Qg5+ 77. Qg4 Qd8 $18) (75. Nxh4 Qd6+ 76. Kf3 Qxb6 $18)) 73... Qe1 $2 {[%emt 0:00:02]} (73... Nf1+ $18 74. Kg1 Ne3) 74. Qe6+ {[%emt 0:00:24]} (74. b8=B Nf1+ 75. Kg1 Qxe4 $19) 74... Kg7 {[%emt 0:01:31]} 75. Nf5+ {[%emt 0:00:15]} ({Schlechter ist} 75. b8=B Nf1+ 76. Kg1 Ne3+ 77. Kh2 Qh4+ 78. Kg1 Qe1+ 79. Kh2 $11) 1-0

[Event "African Individual Chess-ch Open 2024"]
[Site "Accra"]
[Date "2024.03.17"]
[Round "6.8"]
[White "Rongwane, Gomolemo"]
[Black "Wanyama, Harold"]
[Result "0-1"]
[ECO "A14"]
[WhiteElo "2021"]
[BlackElo "2226"]
[Annotator "RC"]
[PlyCount "88"]
[EventDate "2024.03.13"]
[EventCountry "GHA"]
[SourceTitle "playchess.com"]
[Source "ChessBase"]
[SourceQuality "1"]
[TimeControl "5400+30"]

1. Nf3 {[%emt 0:00:13]} d5 {[%emt 0:00:30]} 2. g3 {[%emt 0:02:04]} Nf6 {[%emt 0:00:37]} 3. Bg2 {[%emt 0:00:08]} e6 {[%emt 0:00:22]} 4. O-O {[%emt 0:00:21]} Be7 {[%emt 0:00:08]} 5. c4 {[%emt 0:01:19]} O-O {[%emt 0:00:12]} 6. d3 {[%emt 0:02:00]} c5 {[%emt 0:00:47]} 7. Nc3 {[%emt 0:02:23]} Nc6 {[%emt 0:00:46]} 8. b3 {[%emt 0:01:39]} d4 {[%emt 0:00:45]} 9. Nb1 {[%emt 0:01:21]} e5 {[%emt 0:00:32]} 10. Nbd2 {[%emt 0:00:23]} h6 {[%emt 0:00:26]} 11. a3 {[%emt 0:01:12]} Re8 {[%emt 0:00:37]} 12. Bb2 {[%emt 0:03:16]} Bf8 {[%emt 0:00:16]} 13. Nh4 {[%emt 0:01:23]} Qc7 {[%emt 0:02:20]} 14. Qc2 {[%emt 0:03:23]} Be6 {[%emt 0:01:27]} 15. h3 {[%emt 0:01:08]} Rad8 {[%emt 0:00:33]} 16. Rae1 {[%emt 0:02:42]} Nh7 {[%emt 0:01:09]} 17. Nhf3 {[%emt 0:02:24]} Qd7 {[%emt 0:05:08]} 18. Kh2 {[%emt 0:00:29]} f5 {[%emt 0:00:26]} 19. e3 {[%emt 0:01:56]} Bd6 {[%emt 0:08:49]} 20. e4 {[%emt 0:10:17]} f4 {[%emt 0:00:37]} 21. gxf4 {[%emt 0:03:39]} exf4 {[%emt 0:00:59]} 22. e5 {[%emt 0:02:28]} Bb8 {[%emt 0:01:17]} 23. Re2 {[%emt 0:04:57]} Nf8 {[%emt 0:02:40]} 24. Rfe1 {[%emt 0:03:17]} Qf7 {[%emt 0:01:13]} 25. Bc1 {[%emt 0:08:02]} Ng6 {[%emt 0:02:06]} 26. Ne4 {[%emt 0:00:49]} b6 {[%emt 0:01:35]} 27. Nd6 {[%emt 0:01:30]} Bxd6 {[%emt 0:00:42]} 28. exd6 {[%emt 0:00:01]} Rxd6 {[%emt 0:00:45]} 29. Nd2 {[%emt 0:07:33]} Nd8 {[%emt 0:00:54]} 30. b4 {[%emt 0:07:23]} cxb4 {[%emt 0:01:30]} 31. axb4 {[%emt 0:00:05]} Nh4 {[%emt 0:00:50]} 32. Bf1 {[%emt 0:05:07]} Rf8 {[%emt 0:01:13]} 33. c5 {[%emt 0:01:08]} bxc5 {[%emt 0:00:46]} 34. bxc5 {[%emt 0:00:30]} Rc6 {[%emt 0:00:15]} 35. Re4 {[%emt 0:00:25]} Bd5 {[%emt 0:02:28]} 36. Rxd4 {[%emt 0:02:23]} Rg6 {[%emt 1:02:50]} 37. Ree4 {[%emt 0:01:35]} Nc6 {[%emt 0:00:00]} 38. Ra4 {[%emt 0:04:32]} Bb3 {[%emt 0:00:00]} 39. Qc3 {[%emt 0:00:46]} Bxa4 {[%emt 0:00:00]} 40. Rxa4 {[%emt 0:00:05]} Qf5 {[%emt 0:00:00]} 41. Qc4+ {[%emt 0:10:32]} Kh7 {[%emt 0:00:00]} 42. Qe4 {[%emt 0:02:21]} Qxc5 {[%emt 0:00:00]} 43. Rc4 {[%emt 0:00:00]} Qxf2+ {[%emt 0:00:00]} 44. Bg2 {[%emt 0:00:00]} f3 {[%emt 0:00:00]} 0-1

[Event "African Individual Chess-ch Open 2024"]
[Site "Accra"]
[Date "2024.03.17"]
[Round "6.9"]
[White "Adewole, Adeyinka Samuel"]
[Black "Paiva, Donaldo"]
[Result "0-1"]
[ECO "A02"]
[WhiteElo "1935"]
[BlackElo "2172"]
[Annotator "RC"]
[PlyCount "80"]
[EventDate "2024.03.13"]
[EventCountry "GHA"]
[SourceTitle "playchess.com"]
[Source "ChessBase"]
[SourceQuality "1"]
[TimeControl "5400+30"]

1. f4 Nf6 2. Nf3 g6 3. e3 Bg7 4. Be2 O-O 5. O-O b6 6. c3 c5 7. d3 d5 8. d4 Ba6 9. Ne5 {[%emt 0:04:30]} e6 {[%emt 0:04:30]} 10. Nd2 {[%emt 0:05:37]} Qc8 {[%emt 0:07:27]} 11. g4 {[%emt 0:00:48]} Ne8 {[%emt 0:02:07]} 12. Rf3 {[%emt 0:02:04]} f6 {[%emt 0:04:43]} 13. Nd3 {[%emt 0:00:11]} Nd6 {[%emt 0:01:38]} 14. Rg3 {[%emt 0:00:35]} Nd7 {[%emt 0:01:16]} 15. Nf2 {[%emt 0:01:37]} Bb7 {[%emt 0:18:41]} 16. Nf3 {[%emt 0:02:06]} e5 {[%emt 0:01:18]} 17. g5 {[%emt 0:00:34]} Nf5 {[%emt 0:07:47]} 18. Rh3 {[%emt 0:01:13]} cxd4 {[%emt 0:11:19]} 19. gxf6 {[%emt 0:04:56]} dxe3 {[%emt 0:04:24]} 20. Ne4 {[%emt 0:16:21]} Nxf6 {[%emt 0:04:17]} 21. Nxf6+ {[%emt 0:01:46]} Bxf6 {[%emt 0:00:16]} 22. fxe5 {[%emt 0:02:30]} Be7 {[%emt 0:04:08]} 23. Bf1 {[%emt 0:04:01]} Bc5 {[%emt 0:06:13]} 24. Be2 {[%emt 0:04:20]} a5 {[%emt 0:00:47]} 25. Rb1 {[%emt 0:01:43]} a4 {[%emt 0:00:55]} 26. b4 {[%emt 0:00:14]} axb3 {[%emt 0:00:06]} 27. axb3 {[%emt 0:00:06]} b5 {[%emt 0:00:05]} 28. Qd3 {[%emt 0:01:38]} Ra2 {[%emt 0:10:10]} 29. Bb2 {[%emt 0:04:08]} b4 {[%emt 0:06:54]} 30. Ng5 {[%emt 0:01:23]} h5 {[%emt 0:00:44]} 31. cxb4 {[%emt 0:18:59]} Be7 {[%emt 0:00:22]} 32. Rc1 {[%emt 0:09:35]} Rxb2 {[%emt 0:00:07]} 33. Rxc8 {[%emt 0:00:54]} Rxc8 {[%emt 0:00:06]} 34. Qb5 {[%emt 0:06:45]} Bxg5 {[%emt 0:00:20]} 35. Qxb7 {[%emt 0:00:32]} Rc1+ {[%emt 0:00:08]} 36. Bf1 {[%emt 0:00:16]} e2 {[%emt 0:03:00]} 37. Qxd5+ {[%emt 0:01:56]} Kg7 {[%emt 0:00:11]} 38. Qb7+ {[%emt 0:04:56]} Kh6 {[%emt 0:02:20]} 39. Rf3 {[%emt 0:01:17]} Be3+ {[%emt 0:00:10]} 40. Rf2 {[%emt 0:02:08]} exf1=Q# {[%emt 0:00:49]} 0-1